Workbook

Sheet INSTRUCTIONS
A1: INSTRUCTIONS FOR COMPLETING THE AHC FOR SALE APPLICATION & PROFORMA WORKSHEETS
A3: General Instructions
B4: A. | C4: You will only be able to enter information into yellow input cells. All other cells are protected for AHC use.
B5: B. | C5: Complete the following worksheets in the order corresponding to their numbering: 1) Application, 2) Development Budget, 3) Construction Costs, 4) Sources & Uses, 5) MVA, 6) Priorities, 7) UD (Universal Design), 8) Living Wage, 9) SIS (Sustainability Impact Statement), and 10) 1099.
B6: C. | C6: To print this entire file, click on File>Print and select "Print Entire Workbook."
A7: 1) Application
B8: A. | C8: This is the general application form. Insert the amount of your request in Cell Q64. The amount of your request will automatically flow to the Source & Use Worksheet.
B9: B. | C9: Fill in all applicable yellow cells. Many sections will prompt you with drop-down menus.
B10: C. | C10: Include all documents and exhibits listed in the Application Checklist (Section VIII) with each of the three hard copy applications. Email this Excel Spreadsheet file to AHC's Housing Analyst at: hinerl@stlouis-mo.gov. Applicants must also submit three (3) printed hard copy applications (worksheets 1-11) with all exhibits and original signatures on the final certifications page. One copy must be in a three-ring binder, with tabs corresponding to each number (on this checklist). Two (2) copies must be secured with a single binder clip and submitted without tabs, staples or paperclips. 3) Applicants must also provide a complete copy of the application and all exhibits on a labeled USB Flash drive.
B11: D. | C11: When you print a hard copy of this file, be sure to carefully read and sign the certifications on the final page. Submit the three (3) hard copies with original signatures to AHC.
A12: 2) Development Budget
B13: A. | C13: Enter development costs for the project. Note: construction costs are entered on the Construction Cost Tab (Worksheet 3).
B14: B. | C14: The worksheet will automatically calculate the Development Subsidy needed.
A15: 3) Construction Costs
B16: A. | C16: Enter detailed construction costs.
B17: B. | C17: Note AHC's limits for overhead, general conditions and profits. Stay within the allowable percentage limits.
B18: C. | C18: After completing this sheet, check worksheet 2 (Development Budget Worksheet) to insure applicable cost data transferred properly.
A19: 4) Proforma Summary - Sources & Uses
B20: A. | C20: Enter all permanent sources of financing, debt, and equity.
B21: B. | C21: Enter all construction sources along with interest rates. Some may be identical to permanent sources.
B22: C. | C22: Check that permanent sources = uses AND that construction sources = uses.
B23: D. | C23: Enter additional information if necessary in the "Developer's Notes" section at the bottom of the sheet.
A24: 5) Market Value Analysis (MVA)
B25: A. | C25: This section is one (1) page. Follow instructions.
A26: 6) Priorities (to be Attained)
B27: A. | C27: All projects MUST provide housing for households ≤80% AMI. This section outlines AHC's priorities for this funding round. Projects that attain funding priorities will receive priority consideration.
A28: 7) Universal Design Budget
B29: A. | C29: If new construction, input costs attributed to making the AHC-Assisted Units Universally Designed. Sign the UD certification at the end of the Application (Worksheet 1).
A30: 8) Living Wage Acknowledgment and Acceptance Declaration
B31: A. | C31: Complete this form. If the applicant is a non-profit agency that has previously received funding from AHC and there have been no changes to your agency's non-profit status, Articles of Incorporation and By-laws, sign the No Change Affidavit.
A32: 9) Sustainability Impact (SIS)
B33: A. | C33: Indicate all activities in your project that advance the City's Sustainability Plan.
A34: 10) 1099 | C34: Print and complete this form.
A35: 11) Compliance Info
B36: A. | C36: This sheet outlines AHC's program & eligibility requirements.
B37: B. | C37: You will not input information on this sheet, but should review it to insure your project remains within Program Limits.

Sheet 1) Application
A1: FOR-SALE HOUSING PRODUCTION APPLICATION
A2: AFFORDABLE HOUSING COMMISSION
A3: AHC: (314) 657-3880
A5: I. | B5: General Information
A6: u | B6: Development Information
B7: Project Name:
B8: Street Address: | O8: Neighborhood
B9: St. Louis, MO | F9: Zip: | L9: Ward: | Q9: Census Tract:
B11: Property ID#:
B22: Total Number of Units planned | J22: =SUM(J23:K30) -> 0 | L22: units | N22: Total Number of AHC-Assisted Units
B23: Number of Market Rate Units | L23: units | N23: AHC-Assisted ≤20% AMI Units
B24: Number of Low/Mod Units at 80% AMI | N24: # LMI Units | U24: =J24+J25+J26+J27+J28+J29+J30 -> 0
B25: Number of Low/Mod Units at 70% AMI
B26: Number of Low/Mod Units at 60% AMI | M26: You Must Input # of Units in this Section
B27: Number of Low/Mod Units at 50% AMI
B28: Number of Low/Mod Units at 40% AMI
B29: Number of Low/Mod Units at 30% AMI
B30: Number of Low/Mod Units at 20% AMI
B31: Construction Type
B32: Housing Type
B33: Project Summary Briefly describe your project.
B42: Project description (continued)
B58: Do you plan to seek real property tax abatement for this development?
C59: If yes, is development in a designated redevelopment area under:
C61: Percent Occupied: | I61: %
A63: u | B63: Assistance Request Information
C64: Amount requested?
C65: Requested Forgivable Developer Subsidy?
C66: Requested Repayable Buyer Subsidy (total sum)?
C67: Number of Repayable Buyer Subsidies Requested:
C68: Amount of each Repayable Buyer Subsidy:
P70: Per AHC-Assisted | T70: Subsidy per
B71: AHC Funding Request | N71: Total | Q71: Unit | T71: 20% AMI Unit
B72: Short-Term Financing
B73: AHC Construction Loan requested | N73: =Q65 -> 0
B74: Permanent Financing
B75: AHC Development Subsidy requested | N75: =Q65 -> 0
B76: AHC Homebuyer Subsidy requested | N76: =Q66 -> 0
B77: Total AHC Funding | M77: =N75+N76 -> 0 | Q77: =M77/U22 ->  | T77: =(M77/U22)*U23 -> 
B79: Indicate preferred funding & repayment terms:
A83: u | B83: Developer Information
B84: Entity Name: | N84: Federal I.D. #:
B85: Contact Person: | O85: Phone:
B86: Address: | M86: Email:
B87: City: | K87: State: | P87: Zip:
B88: Legal Form:
A93: u | B93: General Partner/Corporate Officer Information (if applicable)
B94: (List Managing General Partner on first line.) | U94: Ownership %
B95: Name: | K95: Fed. ID/Soc. Sec. #
B96: Name: | K96: Fed. ID/Soc. Sec. #
B97: Name: | K97: Fed. ID/Soc. Sec. #
A102: u | B102: Previous Development Experience
B103: Has the developer completed other residential development projects?
C104: If yes, please answer the following:
C105: How many projects has the developer completed?
C106: How many dwelling units has the developer been responsible for producing?
C107: New Construction | J107: # | K107: units: | N107: Rehab | Q107: # units:
B108: List most recently completed projects:
B109: Project Name | F109: Address | K109: Construct Type | M109: Tenure Type | O109: Target Residents | R109: # Units | T109: Total Dev. Costs
B116: If developer has been involved in residential development projects in some other capacity, please specify:
A121: II. | B121: Development Plan Information
B122: Residential Floor Area planned | M122: ='2) Development Budget'!C7 -> 0 | P122: gross sq. ft.
B123: Total number of Buildings planned | P123: buildings
B124: Age of existing Building(s) | P124: years old
B125: Construction Type | G125: =G31 -> 0
B126: Housing Type | G126: =G32 -> 0 | N126: # of Stories:
B127: Structural System | I127: Basement | O127: Exterior
B128: Parking
B129: Is this project targeting special populations in addition to Low/Mod Income?
B130: If yes, indicate which populations: | P130: Other:
B132: # of Accessible Units Planned:
B133: % Accessible (hearing) Units Planned: | M133: %
B134: # of Universally Designed Units Planned:
A136: u | B136: New Construction - Must Adhere to National Green Building Standard
B138: All new construction projects must build to a national green building standard (LEED, Enterprise Green, NGBS, or EnergyStar with a RESNET energy auditor).
B140: This is a new construction project
B141: If yes, indicate the national green building standard sought:
A143: u | B143: Energy Efficiency - Rehabilitation
B144: AHC gives priority consideration for comprehensive rehabilitation projects designed and built to a national green building standard (Funding Priorities). All other rehabilitation projects are encouraged to include the following sustainable features. Indicate which sustainable features will be included.
B146: Sealed combustion furnace (if gas) greater or equal to 92% AFUE, properly sized
B147: High efficiency furnace (if electric), properly sized
B148: Caulk and seal package
B149: Energy Star bath exhaust fan with a timer
B150: All newly installed appliances should be ENERGY STAR Certified
B151: 90% of lights should be LED
B152: Low VOC paint & flooring
B153: WaterSense certified plumbing fixtures
O154: Sustainability Certification in addition to EPA Energy Star? Describe:
H155: Description:
B157: Heating System:
B158: Air Conditioning System:
B159: Domestic Hot Water:
B160: Appliances:
A162: u | B162: Equipment included with Income Restricted Units
C163: Microwave | H163: Refrigerator | L163: Kitchen Exhaust Duct | R163: Other:
C164: Range & Oven | H164: Ceiling Fans | L164: Common On-site Laundry
C165: Garbage Disposal | H165: Fireplace | L165: Security Alarm
C166: Dishwasher | H166: Blinds/Drapes | L166: Laundry in unit
A168: III. | B168: Site Information
B169: Form of Site Control: | J169: Price:
B170: Date of Acquisition: | J170: Expiration date of option/contract:
B172: Total Site Area (purchased in this transaction):
B173: Project Site Area (utilized for proposed development):
B175: Are any project buildings in a National or City historic district?
B176: Are any project buildings within 300 feet of a park?
B177: If YES, have you discussed your project w/ the Cultural Resources Office?
B178: Property acquired from the City's Land Reutilization Authority?
B180: Seller's Name:
B181: Mailing Address:
B182: City: | H182: State: | L182: Zip: | P182: Phone:
B183: Arms-Length Transaction?
B185: Explain the relationship between buyer and seller. Provide sales contract from last arms-length transaction.
B191: Of the project properties, list those with an existing mortgage as well as the outstanding loan amount:
B192: Address | R192: Mortgage Balance
B199: Does current site zoning allow the proposed residential use?
B200: If no, please explain what steps have been or will be taken to obtain zoning approval.
B207: Will the current site(s) require lots to be subdivided?
B208: Are the following utilities now located on the site?
C209: Public Water Supply | P209: Feet from Site
C210: Public Sewer System | P210: Feet from Site
C211: Natural Gas Distribution System | P211: Feet from Site
C212: Electric Power System | P212: Feet from Site
C213: Cable Television System | P213: Feet from Site
C214: Telephone System | P214: Feet from Site
B215: Are the following conditions present at the proposed development site?
C216: All or part in 100-yr. floodplain | M216: Standing water
C217: Railroad tracks within 300 feet | M217: Creek, lake, river frontage
C218: High tension wires | M218: Ravines or steep grades
C219: High noise levels | M219: Industrial sites
C220: Hazardous waste sites | M220: Commercial sites
B221: Please describe any other unusual site conditions:
B228: Describe neighborhood assets such as high performing schools, employment options, low poverty, as well as, the project's alignment with a neighborhood plan, if one exists, and other noteworthy developments that may have a positive impact on the marketability of the development.
A235: IV. | B235: Development Schedule
B236: In the chart below, enter the month and year that the item was accomplished, or for future events, the month and year when that item is expected to be accomplished. If an item does not apply to your development, enter N/A or leave blank.
O237: Month | R237: Year
C238: Site | I238: Option
I239: Contract
I240: Closing
I241: Zoning
I242: Site Analysis
C243: Construction Financing | I243: Application Submission
I244: Conditional Commitment
I245: Firm Commitment
I246: Closing
C247: Plans | I247: Preliminary Drawings
I248: Working Drawings
C249: Construction Loan Closing
C250: Construction Start
C251: Marketing Start-Up
C252: Construction Complete
C253: All Units Sold
N254: Total Construction Schedule: | R254: months
F255: Number of months after January 2026 | R255: months
A256: V. | B256: Home Pricing & Market Assessment
P257: Projected | S257: AHC Repayable
B258: Street Address | H258: SF | K258: BR | M258: BA | P258: Sale Price | S258: Buyer Subsidy
A259: Unit 1
A260: Unit 2
A261: Unit 3
A262: Unit 4
A263: Unit 5
A264: Unit 6
A265: Unit 7
A266: Unit 8
A267: Unit 9
A268: Unit 10
A269: Unit 11
A270: Unit 12
B271: *Buyer Assistance typically ranges between $8,000 - $10,000 per home.
A272: Square Feet: | D272: =SUM(H259:I271) -> 0 | G272: Home Sale Proceeds | L272: =SUM(P259:Q271) -> 0 | P272: Sum Buyer Subsidies | T272: =SUM(S259:T270) -> 0
B274: Describe how you determined the need/market demand for the proposed project.
B282: Explain how you arrived at the projected home sales prices:
B288: Describe how you will pre-sell homes or market them during construction.
A294: VI. | B294: Development Team Information
E295: Name | J295: Address | S295: Phone
B296: Contractor:
B297: Consultant:
B298: Attorney:
B299: Tax Accountant:
B300: Architect:
B301: Engineer:
B302: Track record of prime contractor — list the contractor's five most recently completed projects:
B303: 1.
B304: 2.
B305: 3.
B306: 4.
B307: 5.
B308: Track record of architect — list the architect's five most recently completed projects:
B309: 1.
B310: 2.
B311: 3.
B312: 4.
B313: 5.
B315: Does developer or owner hold a direct financial interest in any other team member?
B316: If yes, provide details of the relationship:
B321: Is the Developer, Sponsor, or any other Development Team Member, including any of their owners, partners, or board members currently debarred from contracting opportunities by any agency or government?
B322: If yes, please provide details:
B329: Has the Developer, Sponsor, or any other Development Team Member listed on the previous page, including any of their owners, partners, or board members ever been debarred from contracting opportunities by any agency or government?
B330: If yes, please provide details:
B337: Market Value Analysis Using the 2024 Residential Market Analysis (Tab 5) explain how the project is part of an equitable plan that strategically invests Trust Fund dollars to improve life for low and moderate-income households.
... 92 more rows

Sheet 2) Development Budget
A1: Affordable Housing Commission For Sale Production Application
A2: Homeownership Development Budget
B3: Project: | C3: ='1) Application'!F7 -> 0 | E3: AHC Units | F3: ='1) Application'!U22 -> 0
B4: Developer/Owner: | C4: ='1) Application'!E84 -> 0 | E4: ≤20% AMI Units | F4: ='1) Application'!U23 -> 0
B5: Sales Commission % | C5: 0.065 | E5: LMI Units | F5: ='1) Application'!U24 -> 0
E6: Total Units | F6: =units -> 0
B7: Square Feet
B9: Unit Type: Insert # Bedrooms, # Bathrooms | C9: # of Units | D9: Base Sales Price | E9: Total Sales | F9: Sales Commission | G9: Per Unit or Average | H9: Per Sq Ft
B10: 3 Bedroom, 2 Bath | C10: 0 | D10: 0 | E10: =C10*D10 -> 0 | F10: =E10*$C$5 -> 0 | H10: =D10/SqFt -> 
B11: 3 Bedroom, 2 Bath | C11: 0 | D11: 0 | E11: =C11*D11 -> 0 | F11: =E11*$C$5 -> 0
B12: 3 Bedroom, 2 Bath | C12: 0 | D12: 0 | E12: 0 | F12: =E12*$C$5 -> 0
B13: 3 Bedroom, 2 Bath | C13: 0 | D13: 0 | E13: 0 | F13: 0
B14: 3 Bedroom, 2 Bath | C14: 0 | D14: 0 | E14: 0 | F14: 0
B15: 3 Bedroom, 2 Bath | C15: 0 | D15: 0 | E15: 0 | F15: =E15*$C$5 -> 0
B16: 3 Bedroom, 2 Bath | C16: 0 | D16: 0 | E16: 0 | F16: 0
B17: 3 Bedroom, 2 Bath | C17: 0 | D17: 0 | E17: 0 | F17: 0
B18: 3 Bedroom, 2 Bath | C18: 0 | D18: 0 | E18: 0 | F18: 0
B19: 4 Bedroom, 2 Bath | C19: 0 | D19: 0 | E19: 0 | F19: 0
B20: 3 Bedroom, 2 Bath | C20: 0 | D20: 0 | E20: 0 | F20: 0
B21: 3 Bedroom, 2 Bath | C21: 0 | D21: 0 | E21: 0 | F21: 0
C22: =SUM(C10:C21) -> 0 | E22: =SUM(E10:E21) -> 0 | F22: =SUM(F10:F21) -> 0 | G22: =SUM(G10:G21) -> 0
D24: PROJECT
D25: TOTAL | E25: Per Unit
A26: DEVELOPMENT COSTS
B27: PREDEVELOPMENT COST | D27: TOTAL | E27: Per Unit | F27: Per SF | H27: % TDC
B28: Architect & Structural Engineer | E28: =D28/units -> 
B29: Asbestos & Lead Based Paint Testing
B30: Phase I Environmental Inspections
B31: Market Analysis
B32: Survey & Civil Engineering
B33: Other:
C34: Total Predevelopment: | D34: =SUM(D28:D33) -> 0 | E34: =SUM(E28:E33) ->  | F34: =D34/SqFt ->  | H34: =D34/TDC -> 
B35: BUILDING AND PROPERTY ACQUISITION
B36: Land & Building (Price or your offer to City) | E36: =D36/units -> 
B37: Settlement Costs (Title Ins., Recording Fees) | E37: =D37/units -> 
B38: Relocation | E38: =D38/units -> 
B39: Other: | E39: =D39/units -> 
C40: Total Acquisition: | D40: =SUM(D36:D39) -> 0 | E40: =SUM(E36:E39) ->  | F40: =D40/SqFt ->  | H40: =D40/TDC -> 
B41: CONSTRUCTION COSTS (complete sheet #3)
B42: General Cond., Overhead & Profit | D42: ='3) Construction Costs'!M12+'3) Construction Costs'!M13+'3) Construction Costs'!M14 -> 0 | E42: =D42/units -> 
B43: Construction Contingency | D43: ='3) Construction Costs'!M98 -> 0 | E43: =D43/units -> 
B44: Construction Hard Costs | D44: =Construction-'2) Development Budget'!D43 -> 0 | E44: =D44/units -> 
C45: Total Construction: | D45: =D44+D42+D43 -> 0 | E45: =SUM(E42:E44) ->  | F45: =D45/SqFt ->  | H45: =D45/TDC -> 
B46: PROFESSIONAL SERVICES
B47: Consultant | E47: =D47/units -> 
B48: Legal | E48: =D48/units -> 
B49: Marketing/Advertising | E49: =D49/units -> 
B50: Fees Related to State Tax Credits | E50: =D50/units -> 
B51: Other: | E51: =D51/units -> 
C52: Total Professional Services: | D52: =SUM(D47:D51) -> 0 | E52: =SUM(E47:E51) ->  | F52: =D52/SqFt ->  | H52: =D52/TDC -> 
B53: CARRYING AND FINANCING COSTS
B54: Inspection & Draw Fees | E54: =D54/units -> 
B55: Points & Bank Fees: Construction Loan
B56: Title Insurance: Construction Loans
B57: CDA Construction Loan Interest | E57: =D57/units -> 
B58: Builder's Risk Insurance
B59: Property Liability Insurance
B60: Real Estate Taxes During Development
B61: Other:
C62: Total Carrying Costs: | D62: =SUM(D54:D61) -> 0 | E62: =SUM(E54:E61) ->  | F62: =D62/SqFt ->  | H62: =D62/TDC -> 
B63: SELLER'S CLOSING COSTS
B64: Realtor Commission | E64: =D64/units -> 
B65: Closing Costs | E65: =D65/units -> 
B66: Homeowner Warranty | E66: =D66/units -> 
B67: Other: | E67: =D67/units -> 
C68: Total Seller's Closing Costs: | D68: =SUM(D64:D67) -> 0 | E68: =SUM(E64:E67) ->  | F68: =D68/SqFt ->  | H68: =D68/TDC -> 
B69: DEVELOPER FEE | C69: =D69/(D68+D62+D52+D45+D34) ->  | E69: =D69/units ->  | F69: =D69/SqFt ->  | H69: =D69/TDC -> 
A71: TOTAL DEVELOPMENT COSTS (TDC): | D71: =D34+D40+D45+D52+D62+D68+D69 -> 0 | E71: =E34+E40+E45+E52+E62+E68+E69 ->  | F71: =D71/SqFt ->  | H71: =D71/TDC -> 
A73: Development Gap
A74: HOME SALES PROCEEDS | D74: =E22 -> 0 | E74: =D74/units -> 
A75: Development Gap/Surplus | D75: =D74-TDC -> 0 | E75: =D75/units -> 

Sheet 3) Construction Costs
B1: Affordable Housing Commission For Sale Production Application
B2: Construction Budget (Based on CSI)
B3: Project: | E3: ='4) Sources & Uses'!D5 -> 0 | K3: Square Feet: | L3: ='2) Development Budget'!C7 -> 0 | M3: AHC Units: | N3: ='1) Application'!U22 -> 0
B4: Developer/Owner: | E4: ='4) Sources & Uses'!D6 -> 0 | K4: Construction: | L4: ='1) Application'!G31 -> 0 | M4: ≤20% AMI Units: | N4: ='1) Application'!U23 -> 0
B5: Address: | E5: ='1) Application'!F8 -> 0 | M5: LMI Units: | N5: ='1) Application'!U24 -> 0
M6: Total Units: | N6: =units -> 0
B9: Square Footage: | M9: Total Cost | N9: Per Unit | O9: Per SF | P9: % Const.
B10: 1. General Requirements | K10: Limit
B11: A. General Contractor Responsibilities
B12: Indirect Overhead: Office expenses such as office rent, utilities, supplies, equipment, office salaries, professional fees, marketing, etc. | K12: 0.02 | P12: =M12/(Construction-M12-M13-M14-M98) -> 
B13: Direct Overhead: Job supervision, temporary utilities & alarm service monitoring during construction, job site toilets, tool rental & storage, clean up, etc. | K13: 0.06 | P13: =M13/(Construction-M12-M13-M14-M98) -> 
B14: Contractor Profit | K14: ='11) Compliance Info'!D61 -> 0.08 | P14: =M14/(Construction-M12-M13-M14-M98) -> 
B15: B. City/County Fee & Building Permit
L16: Subtotal: | M16: =SUM(M12:M15) -> 0 | N16: =M16/units ->  | O16: =M16/$L$3 ->  | P16: =M16/$M$100 -> 
B17: 2. Existing Conditions
B18: Environmental, interior/exterior demolition
B19: Other:
L20: Subtotal: | M20: =SUM(M18:M19) -> 0 | N20: =M20/units ->  | O20: =M20/$L$3 ->  | P20: =M20/$M$100 -> 
B21: 3. Concrete
B22: Basement, foundation, flatwork, piecing, walls
B23: Other:
L24: Subtotal: | M24: =SUM(M22:M23) -> 0 | N24: =M24/units ->  | O24: =M24/$L$3 ->  | P24: =M24/$M$100 -> 
B25: 4. Masonry
B26: Foundation walls, veneer, fireplace, chimney
B27: Other:
L28: Subtotal: | M28: =SUM(M26:M27) -> 0 | N28: =M28/units ->  | O28: =M28/$L$3 ->  | P28: =M28/$M$100 -> 
B29: 5. Metals
B30: Structural, wrought iron
B31: Other:
L32: Subtotal: | M32: =SUM(M30:M31) -> 0 | N32: =M32/units ->  | O32: =M32/$L$3 ->  | P32: =M32/$M$100 -> 
B33: 6. Wood & Composites
B34: Rough & finish carpentry
B35: Other:
L36: Subtotal: | M36: =SUM(M34:M35) -> 0 | N36: =M36/units ->  | O36: =M36/$L$3 ->  | P36: =M36/$M$100 -> 
B37: 7. Thermal & Moisture Protection
B38: Roofing, insulation, siding, trim, gutters
B39: Other:
L40: Subtotal: | M40: =SUM(M38:M39) -> 0 | N40: =M40/units ->  | O40: =M40/$L$3 ->  | P40: =M40/$M$100 -> 
B41: 8. Openings
B42: Windows, interior/exterior doors, hardware
B43: Other:
L44: Subtotal: | M44: =SUM(M42:M43) -> 0 | N44: =M44/units ->  | O44: =M44/$L$3 ->  | P44: =M44/$M$100 -> 
B45: 9. Finishes
B46: Wallboard, lath, plaster, ceramic tile, flooring
B47: Other:
L48: Subtotal: | M48: =SUM(M46:M47) -> 0 | N48: =M48/units ->  | O48: =M48/$L$3 ->  | P48: =M48/$M$100 -> 
B49: 10. Specialties
B50: Mirrors, shelving, bath furnishing, mailbox
B51: Other:
L52: Subtotal: | M52: =SUM(M50:M51) -> 0 | N52: =M52/units ->  | O52: =M52/$L$3 ->  | P52: =M52/$M$100 -> 
B53: 11. Equipment
B54: Equipment, appliances
B55: Other:
L56: Subtotal: | M56: =SUM(M54:M55) -> 0 | N56: =M56/units ->  | O56: =M56/$L$3 ->  | P56: =M56/$M$100 -> 
B57: 12. Furnishings
B58: Cabinets, countertops, window treatments
B59: Other:
L60: Subtotal: | M60: =SUM(M58:M59) -> 0 | N60: =M60/units ->  | O60: =M60/$L$3 ->  | P60: =M60/$M$100 -> 
B61: 13. Special Construction
B62: Porch, deck, off-street parking, accessibility
B63: Other:
L64: Subtotal: | M64: =SUM(M62:M63) -> 0 | N64: =M64/units ->  | O64: =M64/$L$3 ->  | P64: =M64/$M$100 -> 
B65: 14. Fire Suppression Systems
B66: Sprinkler System
B67: Other:
L68: Subtotal: | M68: =SUM(M66:M67) -> 0 | N68: =M68/units ->  | O68: =M68/$L$3 ->  | P68: =M68/$M$100 -> 
B69: 15. Plumbing
B70: Rough and finish plumbing, fixtures
B71: Other:
L72: Subtotal: | M72: =SUM(M70:M71) -> 0 | N72: =M72/units ->  | O72: =M72/$L$3 ->  | P72: =M72/$M$100 -> 
B73: 16. HVAC
B74: HVAC, sheet metal/ductwork
B75: Other:
L76: Subtotal: | M76: =SUM(M74:M75) -> 0 | N76: =M76/units ->  | O76: =M76/$L$3 ->  | P76: =M76/$M$100 -> 
B77: 17. Electrical
B78: Rough and finish electrical, fixtures
B79: Other:
L80: Subtotal: | M80: =SUM(M78:M79) -> 0 | N80: =M80/units ->  | O80: =M80/$L$3 ->  | P80: =M80/$M$100 -> 
B81: 18. Communications
B82: Security & Alarm Systems, phone, cable
B83: Other:
L84: Subtotal: | M84: =SUM(M82:M83) -> 0 | N84: =M84/units ->  | O84: =M84/$L$3 ->  | P84: =M84/$M$100 -> 
B85: 19. Earthwork
B86: Excavation, trenching, backfill, site grading
B87: Other:
L88: Subtotal: | M88: =SUM(M86:M87) -> 0 | N88: =M88/units ->  | O88: =M88/$L$3 ->  | P88: =M88/$M$100 -> 
B89: 20. Exterior Improvements
B90: Paving & Sidewalks, fencing, gates, landscaping
B91: Other:
L92: Subtotal: | M92: =SUM(M90:M91) -> 0 | N92: =M92/units ->  | O92: =M92/$L$3 ->  | P92: =M92/$M$100 -> 
B93: 21. Utilities
B94: Utility Connections, sewer laterals
B95: Other:
L96: Subtotal: | M96: =SUM(M94:M95) -> 0 | N96: =M96/units ->  | O96: =M96/$L$3 ->  | P96: =M96/$M$100 -> 
B97: 22. Total Project Contingency
B98: Contingency
L99: Subtotal: | M99: =SUM(M98:M98) -> 0 | N99: =M99/units ->  | O99: =M99/$L$3 ->  | P99: =M99/(Construction-M99) -> 
B100: Total Construction: | L100: TDC | M100: =M16+M20+M24+M28+M36+M40+M44+M48+M52+M56+M60+M64+M68+M72+M76+M80+M84+M88+M92+M96+M32+M99 -> 0 | N100: =M100/units ->  | O100: =M100/$L$3 ->  | P100: =M100/$M$100 -> 
B101: All estimates should be substantiated with bids and proposals. AHC does not increase funding for projects after proposal submission.

Sheet 4) Sources & Uses
B1: Affordable Housing Commission For Sale Housing Production Application
B2: For Sale Housing Production: Proforma Summary (Source & Use)
B5: Project Name: | D5: ='1) Application'!F7 -> 0 | F5: Construction: | G5: ='1) Application'!G125 -> 0 | H5: AHC Units: | I5: ='1) Application'!U22 -> 0
B6: Developer/Owner: | D6: ='1) Application'!E84 -> 0 | F6: Unit Type: | G6: ='1) Application'!G126 -> 0 | H6: ≤20% AMI Units: | I6: ='1) Application'!U23 -> 0
B7: Total Units: | D7: =units -> 0 | F7: AvgSqFt: | G7: =SqFt/units ->  | H7: LMI Units: | I7: ='1) Application'!U24 -> 0
B8: Address: | D8: ='1) Application'!F8 -> 0 | F8: Total SqFt: | G8: ='2) Development Budget'!C7 -> 0 | H8: Total Units: | I8: =units -> 0
B11: SUMMARY SOURCES & USES
B12: Uses (Development Costs) | F12: Total | G12: Per Unit | H12: % of Total
B13: Predevelopment: | F13: ='2) Development Budget'!D34 -> 0 | G13: =F13/units ->  | H13: =F13/$F$20 ->  | I13: Developer Fee as % of (TDC-Acquisition-Dev Fee):
B14: Acquisition: | F14: ='2) Development Budget'!D40 -> 0 | K14: ='2) Development Budget'!C69 -> 
B15: Construction/Rehab: | F15: ='2) Development Budget'!D45 -> 0
B16: Professional Fees: | F16: ='2) Development Budget'!D52 -> 0
B17: Finance & Carrying Costs: | F17: ='2) Development Budget'!D62 -> 0
B18: Seller's Closing Costs | F18: ='2) Development Budget'!D68 -> 0 | I18: Construction Cost/SqFt: | K18: =F15/G8 -> 
B19: Developer Fee | F19: ='2) Development Budget'!D69 -> 0 | I19: Total Cost/SqFt: | K19: =F20/G8 -> 
B20: Total Development Costs | F20: =SUM(F13:F19) -> 0 | G20: =SUM(G13:G19) ->  | H20: =SUM(H13:H19) -> 
I21: You Must Include Source & Status
I22: of All Funds Sought
K23: Date to be
B24: Permanent Sources | F24: Total | G24: Per Unit | H24: % of Total | I24: Status | K24: Awarded
B25: Home Sales Proceeds (Mortgage, Downpayment) | F25: ='2) Development Budget'!D74 -> 0 | G25: =F25/units ->  | H25: =F25/$F$20 -> 
B26: Estimated MO State Historic Tax Credits | E26: =AND('1) Application'!Q158="Yes",'1) Application'!G125="Rehab",'1) Application'!U356="No") -> FALSE | F26: =IF(E26=TRUE,0.9*('2) Development Budget'!D45+'2) Development Budget'!D69)*0.25*0.85,0) -> 0
B27: Neighborhood Preservation Tax Credits
B28: AHC Funding | F28: ='1) Application'!N75+'1) Application'!N76 -> 0 | H28: =F28/$F$20 -> 
B29: MO State HOME Funds | G29: =F29/units ->  | H29: =F29/$F$20 -> 
B30: Other: | H30: =F30/$F$20 -> 
B31: Other:
B32: Other:
B33: Total Sources | F33: =SUM(F25:F32) -> 0 | G33: =SUM(G25:G32) ->  | H33: =SUM(H25:H32) -> 
B35: Development Surplus/(Gap)? | F35: =F33-F20 -> 0 | G35: =G33-G20 ->  | H35: =F35/F20 -> 
F36: =F33-F20 -> 0
B37: Interim Construction Financing Sources | F37: Total | G37: % of Total | H37: Const. Loan Interest Rate | I37: LTV Ratio | J37: Status
B38: Conventional Bank Construction Loan | G38: =F38/$F$44 ->  | H38: 0 | I38: =F38/$F$25 -> 
B39: Developer Equity (self-financing for acquisition, predevelopment) | H39: 0
B40: Source 3 | H40: 0
B41: Source 4 | H41: 0
B42: =B28 -> AHC Funding | F42: =E49 -> 0
B43: Costs Not Incurred During Construction (dev. fee, closing costs) | F43: =('2) Development Budget'!D69+'2) Development Budget'!D68) -> 0
B44: Total Sources | F44: =SUM(F38:F43) -> 0 | G44: =SUM(G38:G43) -> 
B45: Construction Financing Surplus/(Gap)? | F45: =F44-F20 -> 0 | G45: =F45/$F$44 -> 
B47: Total AHC Funding Request | E47: Total | F47: Per Unit | G47: Per AHC Unit | H47: % TDC
B48: Short-Term Subsidy
B49: AHC Construction Loan | E49: ='1) Application'!N75 -> 0 | F49: =E49/units -> 
B50: Permanent Financing
B51: AHC Development Subsidy | E51: ='1) Application'!N75 -> 0 | F51: =E51/units -> 
B52: AHC Repayable Buyer Subsidy | E52: ='1) Application'!N76 -> 0 | F52: =E52/units -> 
B53: Total AHC Funding | E53: =SUM(E51:E52) -> 0 | F53: =E53/units ->  | G53: =E53/'1) Application'!U22 ->  | H53: =E53/F20 -> 
B55: Developer Notes | I55: Date Entered
B60: AHC Underwriting Summary
B61: 1. General Justification for Funding:
B63: 2. Why is the project needed?
B64: 3. Examine the sources & uses above.
B65: a. Are costs reasonable (necessary & sufficient)?
B66: b. How was this determined?
B67: c. Has adequate funding been secured?
B68: d. What is the status of other funding sources?
B69: 4. Assess neighborhood market conditions:
B70: a. What supports proposed home prices?
B71: b. How will homes be sold within 6 months?
B72: c. Concerns & Other info:
B73: 5. Assess the capacity of the developer.
B74: a. Completed similar projects successfully?
B75: b. Any problem projects current or past?
B76: c. Concerns & Other info:
B77: 6. Assess project risks.
B78: a. Is project likely to be completed in a timely manner?
B79: b. Any foreseeable obstacles to completion?
B80: c. How will team mitigate risk?
B81: d. Concerns & Other info:

Sheet 5) MVA
A1: Affordable Housing Commission For-Sale Production Application
A2: Utilizes 2024 Residential Market Analysis
A4: Project: | C4: ='1) Application'!F7 -> 0 | D4: Project Address: | E4: ='1) Application'!F8 -> 0
A5: Developer: | C5: ='1) Application'!E84 -> 0 | D5: AHC Units: | E5: ='1) Application'!U22 -> 0
A6: AHC Request: | C6: ='1) Application'!Q64 -> 0 | D6: ≤20% AMI Units: | E6: ='1) Application'!U23 -> 0
A7: Project Type: | C7: ='1) Application'!G31 -> 0 | D7: LMI Units: | E7: ='1) Application'!U24 -> 0
A8: Unit Type: | C8: ='1) Application'!G32 -> 0 | D8: Total Units: | E8: =units -> 0
C11: Instructions
A12: 1. | C12: Click on Website: | D12: www.stlouis-mo.gov/data/dashboards/market-value-analysis/index.cfm
A13: 2. | C13: Click "OK" in blue box (lower right splash screen).
A14: 3. | C14: Enter primary site address.
A15: 4. | C15: Click on black dot.
A16: 5. | C16: A new window with MVA Block Group Statistics will pop up.
A17: 6. | C17: Maximize window by clicking on icon in upper right corner.
A18: 7. | C18: Select text while scrolling down and copy all text.
A19: 8. | C19: Paste selected text below (in yellow box)

Sheet 6) Priorities
A1: Affordable Housing Commission For Sale Production Application
A2: Funding Priorities
B3: Project: | C3: ='1) Application'!F7 -> 0 | E3: Construction Type: | G3: ='1) Application'!G31 -> 0 | I3: AHC Units: | J3: ='1) Application'!U22 -> 0
B4: Developer: | C4: ='1) Application'!E84 -> 0 | E4: Housing Type: | G4: ='1) Application'!G32 -> 0 | I4: ≤20% AMI Units: | J4: ='1) Application'!U23 -> 0
B5: Address: | C5: ='1) Application'!F8 -> 0 | I5: LMI Units: | J5: ='1) Application'!U24 -> 0
I6: Total Units: | J6: =units -> 0
A7: Priorities
A8: 1. | B8: Will this proposal create or preserve housing/shelter for households ≤20% of the area median income?
A9: - | B9: If yes, state the number of ≤20% AMI units:
A10: 2. | B10: Proposes permanent supportive housing for special needs & vulnerable households ≤30% AMI?
A11: - | B11: If yes, state the number of ≤30% AMI permanent supportive housing units:
A12: 3. | B12: Will this proposal prevent homelessness for households or individuals earning at or below 80% AMI.?
A13: - | B13: If yes, explain how the project prevents homelessness:
A20: 4. | B20: Will this proposal create affordable housing while advancing ≥15 Sustainability Plan objectives?
B21: All applicants must complete the Sustainability Impact Statement at the end of the application.
A22: http://www.stlouis-mo.gov/government/departments/planning/documents/city-of-st-louis-sustainability-plan.cfm
A23: Proximity to public transportation
A24: 5. | B24: Is this development within one-half mile of public transportation?
A25: - | B25: MetroLink Station/Bus Line Name:
A26: - | B26: Station/Stop Address: | G26: Distance: | J26: mile(s)
A28: Comprehensive Energy Efficient Rehabilitation
A30: 6 | B30: Is this a comprehensive, energy efficient rehab that will be designed & built to a national green building standard? Or, at completion will the project have an energy audit and attain a HERS of 85 or less?
A31: - | B31: What national green standard?
A33: 7 | B33: Proposes housing with three or more bedrooms & serves households ≤80% AMI.
A36: Summary
E37: =J8 -> 0 | F37: ≤20% AMI
E38: =J10 -> 0 | F38: ≤30% AMI & PSH
E39: =J12 -> 0 | F39: Prevents Homeless
E40: =J20 -> 0 | F40: ≥15 Green Objectives
E41: =J24 -> 0 | F41: Public Transit
E42: =J30 -> 0 | F42: Energy Efficient Rehab
E43: =J33 -> 0 | F43: 3+ Bedrooms
E44: =COUNTIF(E37:E43, "Yes") -> 0 | F44: Priorities to be attained

Sheet 7) UD
A1: Affordable Housing Commission For-Sale Production Application
A2: Universal Design Budget
B3: Project: | C3: ='1) Application'!F7 -> 0 | G3: AHC Units: | H3: ='1) Application'!U22 -> 0
B4: Developer: | C4: ='1) Application'!E84 -> 0 | G4: ≤20% AMI Units: | H4: ='1) Application'!U23 -> 0
B5: Address: | C5: ='1) Application'!F8 -> 0 | G5: LMI Units: | H5: ='1) Application'!U24 -> 0
G6: Total Units: | H6: =units -> 0
A8: u | B8: Universal Design (UD) Requirements (Complete for New Construction Only)
A10: All new construction projects must adhere to the Commission's Universal Design Requirements. AHC's UD Requirements are available at: www.affordablehousingcommissonstl.org.
A13: Universal Design Budget
A14: Materials/Supplies | E14: Cost without UD | G14: Additional Cost due to UD | J14: Total Cost
J15: =E15+G15 -> 0
J16: =E16+G16 -> 0
J17: =SUM(E17:I17) -> 0
J18: 0
J19: 0
J20: 0
J21: 0
J22: 0
J23: 0
J24: 0
J25: 0
A26: Subtotal | E26: =SUM(E15:F25) -> 0 | G26: =SUM(G15:I25) -> 0 | J26: =SUM(J15:K25) -> 0
A28: Other | E28: Cost without UD | G28: Additional Cost due to UD | J28: Total Cost
J29: =SUM(E29:I29) -> 0
J30: 0
J31: 0
J32: 0
J33: 0
J34: 0
J35: 0
A36: Subtotal | E36: =SUM(E29:F35) -> 0 | G36: =SUM(G29:I35) -> 0 | J36: =SUM(J29:K35) -> 0
A38: Number of AHC-assisted, universally designed homes in project: | J38: ='1) Application'!M134 -> 0
A39: Number of affordable homes in project: | J39: ='1) Application'!U24 -> 0
A40: Number of homes in project: | J40: ='1) Application'!J22:K22 -> 0
A41: Cost for Universal Design | J41: =G36+G26 -> 0
A42: Cost for Universal Design per AHC-Assisted Home | J42: =J41/J38 -> 

Sheet 8) Living Wage
A1: LIVING WAGE ACKNOWLEDGEMENT AND ACCEPTANCE DECLARATION
B4: (To be completed by each respondent to a bid/proposal solicitation when that solicitation has included Living Wage Advertisement/Solicitation Language)
A8: CONTRACTING AGENCY | H8: Affordable Housing Commission
A10: AGENCY CONTRACT NUMBER | H10: 1430010
A12: BIDDER'S PROPONENT'S NAME:
A14: DATE PREPARED:
A16: PREPARED BY:
A18: PREPARER'S TELEPHONE NUMBER:
A20: PREPARER'S E-MAIL ADDRESS:
A22: PREPARER'S CELL PHONE NUMBER:
A24: PREPARER'S ADDRESS AND ZIP CODE:
A26: As the authorized representative of the above-referenced bidder or proponent, I hereby acknowledge that the bidder/proponent understands that the contract or agreement that will be executed with a successful bidder/proponent pursuant to this solicitation
A33: AUTHORIZED REPRESENTATIVE CERTIFICATION:
A36: Signature
A39: NAME:
A41: TITLE:
A43: DATE:
A47: Living Wage Change/No Change Affidavit for Contracts With
A48: Not-For-Profit Entities
B51: I | I51: swear that there have been no changes in
H52: circumstances affecting its earlier certification as
A53: a non-profit entity conforming to the definition of Exempt Non-Profit Organization in accordance with the Living Wage Ordinance 65597 Subparagraph (A)(iv). I swear there have been no material changes in the information provided to Affordable Housing Commission the organization's IRS Tax-Exemption Status Determination Letter, Articles of Incorporation and By-laws submitted on
E54: .
A57: I specifically swear the following changes have been made (Documentation of Changes shall be submitted with this affidavit):
B61: Signature | I61: Date
A63: State of | G63: , City/County of
A65: On this | C65: day of | F65: 2025, | G65: before me appeared
A66: to me personally known, who, being duly sworn, did execute the foregoing affidavit and did state that he or
A67: she was properly authorized by | M67: ,
E68: name of firm
A69: to execute the affidavit and did so as his or her free act and deed.
A80: (SEAL/STAMP)
A82: Notary Public | H82: Commission Expires

Sheet 9) SIS
C1: Exhibit E
C2: SUSTAINABILITY IMPACT STATEMENT
A3: Project: | C3: ='1) Application'!F7 -> 0 | D3: =Evaluation!B2 -> 0
A4: Developer: | C4: ='1) Application'!E84 -> 0
C5: SUSTAINABILITY IMPACT STATEMENT
C6: Below are the Objectives in the City's Sustainability Plan. Indicate activities in your project that advance the City's Sustainability Plan with a "1" in Column D | D6: Included
C8: Urban Character, Vitality & Ecology
C9: A. Support Designated Districts that Focus on Job Creation and Economic Prosperity
A10: 1 | C10: Reinforce the City's Central Corridor as the dynamic "heart" of the region
A11: 2 | C11: Provide and market a smart grid, Wi-Fi Hot spots and technological infrastructure
A12: 3 | C12: Develop designated areas via incentives for "green" and technical industries
A13: 4 | C13: Increase riverfront development and provide safe public access and associated recreational activities
A14: 5 | C14: Provide development incentives to encourage transit-oriented-development
C16: B. Develop Healthy, Compact, Transit-Served Smart Neighborhoods
A17: 1 | C17: Prioritize infill development to develop thriving compact communities and vibrant mixed-use main streets
A18: 2 | C18: Update local street design standards and implement the Complete Streets Ordinance
A19: 3 | C19: Create Citywide, and multiple neighborhood scale mobility plans
A20: 4 | C20: Discourage development that reduces transit, bike, and pedestrian use
A21: 5 | C21: Create Form-Based Code Overlay Districts
A22: 6 | C22: Expand on the safe routes to school program for neighborhood children
A23: 7 | C23: Encourage communities to improve their own neighborhood
C25: C. Strengthen Use, Access, and Programming of Civic Amenities, Public Spaces and Streets
A26: 1 | C26: Design public spaces and neighborhood streets as gathering spaces for people
A27: 2 | C27: Increase support and funding to bring programs and activities to public spaces
A28: 3 | C28: Expand neighborhood access to school grounds and other public facilities during off times
A29: 4 | C29: Improve school yards, playgrounds, fields, and gyms for physical activity
A30: 5 | C30: Maintain public spaces and neighborhood streets
C32: D. Support and Increase the City's Greenscape, Including its Existing Park System and Tree Canopy
A33: 1 | C33: Ensure all residents have access to parks, recreation facilities, and open spaces
A34: 2 | C34: Develop a healthy active living program that utilizes City parks
A35: 3 | C35: Development a regional greenway and trail system
A36: 4 | C36: Develop funding, operations, and management partnerships for public parks
A37: 5 | C37: Update City park and open space plans
A38: 6 | C38: Increase visual identity and branding of City parks
A39: 7 | C39: Expand the City's tree canopy
A40: 8 | C40: Develop a City-wide public and private reforestation campaign
A41: 9 | C41: Utilize existing park and green space improvements to drive economic and community development
A42: 10 | C42: Use volunteers as park stewards for all City parks
C44: E. Promote Conservation and Revitalization of the City's Unique Biodiversity and Natural Resources
A45: 1 | C45: Celebrate and increase activity along the Mississippi Riverfront
A46: 2 | C46: Remove/change infrastructure to improve riverfront access
A47: 3 | C47: Restore, clean and activate the City's waterways
A48: 4 | C48: Conduct a regional natural resources inventory and implement protections
A49: 5 | C49: Promote inclusion of native plants and habitats on public and private land
A50: 6 | C50: Provide public education on the City's natural heritage and resources
A51: 7 | C51: Create a long range City wildlife plan to connect key wildlife areas
C53: F. Preserve the City's Historically & Architecturally Significant Districts, Buildings, Landmarks, and Landscapes
A54: 1 | C54: Preserve and reuse buildings as a means of achieving sustainability
A55: 2 | C55: Continue to integrate preservation into the planning and building approval process
A56: 3 | C56: Create additional events, resources and publications that document and celebrate the City's heritage
A57: 4 | C57: Protect historic residential and commercial properties vulnerable to foreclosure, tax forfeiture, or demolition
A58: 5 | C58: Promote the redevelopment of historic homes and commercial properties
A59: 6 | C59: Prevent scavenging of bricks, metals, and other building materials from vacant buildings
A60: 7 | C60: Encourage the re-use of historic building materials
A61: 8 | C61: Promote public engagement in the historic preservation movement
C63: G. Increase Access to Affordable Housing in Neighborhoods with Access to Transit and Amenities
A64: 1 | C64: Develop affordable housing in concert with long range transit and economic development planning
A65: 2 | C65: Encourage mixed income/use affordable housing in high amenity neighborhoods
A66: 3 | C66: Expand inclusionary policies in order to create economically-integrated communities
A67: 4 | C67: Integrate low income housing into market-rate and mixed use developments
A68: 5 | C68: Promote neighborhood stabilization efforts
A69: 6 | C69: Experiment with new ways to raise funds and build partnerships to build sustainable and affordable housing
A70: 7 | C70: Support the development of housing with embedded supportive services
A71: 8 | C71: Offer housing that is energy efficient and environmentally sustainable
C73: H. Encourage Creative, Smart and Sustainable Uses for Under-Utilized Land and Buildings
A74: 1 | C74: Develop a City-wide strategic plan for maintaining and developing vacant land and property
A75: 2 | C75: Actively market and publicize the available properties and buildings that LRA owns
A76: 3 | C76: Provide special lot-purchasing programs and encourage creative temporary or permanent land uses
A77: 4 | C77: Continue to remove site contamination and promote brownfield redevelopment
A78: 5 | C78: Assess the viability of employing natural systems for remediation of contaminated land
A79: 6 | C79: Maintain appearance of vacant land and abandoned properties
A80: 7 | C80: Take action to eliminate illegal dumping and other environmental crimes
A81: 8 | C81: Enhance community cleaning and beautification efforts
C83: I. Build a Vibrant, Community-Based Agriculture Industry
A84: 1 | C84: Facilitate agriculture practices with zoning code updates
A85: 2 | C85: Broaden the definition of acceptable forms of farming
A86: 3 | C86: Develop policies and programs that permit leasing of vacant lots for community gardens
A87: 4 | C87: Ensure urban agriculture is a profitable, viable enterprise
A88: 5 | C88: Partner with neighborhoods and developers to provide a community development aspect to urban agriculture
A89: 6 | C89: Incubate innovative new urban agriculture ventures
C91: J. Facilitate Place-Based, Integrated Sustainability Planning
A92: 1 | C92: Engage in place-based planning and improvements around community anchors
A93: 2 | C93: Use zoning and land-use planning to foster sustainable development
A94: 3 | C94: Employ form-based zoning to promote healthy, compact and active communities
A95: 4 | C95: Preserve neighborhood residential areas and commercial and mixed uses on corners and major corridors
A96: 5 | C96: Increase the effectiveness of major commercial corridors
A97: 6 | C97: Develop codes for transit oriented development districts
A98: 7 | C98: Integrate sustainable parking practices into neighborhood and district plans
A99: 8 | C99: Incorporate sustainability in economic development programs
A100: SAA2 | C100: Make LRA land available at no cost for smart, productive, create re-use of the land
A101: SAA4 | C101: Increase the number of trees planted by 16,000 or 15%
C103: Arts & Innovation
C104: A. Utilize the Arts, Design, Creative, and Innovation Industries for Economic and Community Development
A105: 1 | C105: Continue to attract and sponsor major arts and design events
A106: 2 | C106: Market the City's arts and innovative industries in order to attract and retain "young professionals" and the "creative class"
A107: 3 | C107: Include youth development and education within art and creative projects and programs
A108: 4 | C108: Encourage the development of affordable artist housing, studios, and venues
A109: 5 | C109: Diversify the City's range of arts, philosophy and innovation industries
A110: 6 | C110: Develop a long-range "arts culture and innovation" policy and master plan
A111: 7 | C111: Encourage sustainable practices and community-wide leadership
C113: B. Increase Affordable and Equitable Access to a Range of Arts & Culture
A114: 1 | C114: Provide affordable after-school, summer sports and arts camps
A115: 2 | C115: Ensure existing arts and creative events and venues are easily accessible
A116: 3 | C116: Provide all residents with access to basic arts and creative amenities, experiences, events, instruction, and resources
A117: 4 | C117: Support the expansion of the Zoo Museum District (ZMD) to additional venues
A118: 5 | C118: Ensure all residents have access to information about arts and creative events
C120: C. Develop Multi-Use, Transit Accessible Arts and Creative Districts
A121: 1 | C121: Ensure art districts are multi-use, walkable, and well served by transit
A122: 2 | C122: Facilitate development of arts and innovation TOD's
A123: 3 | C123: Encourage synergies within arts and creative developments
A124: 4 | C124: Ensure arts and creative districts remain affordable.
A125: 5 | C125: Target developing art districts for streetscape and public space improvements
C127: D. Encourage Innovation through Smart Learning Hubs and Venture Capital
A128: 1 | C128: Develop smart learning hubs as centers of research and innovation
A129: 2 | C129: Improve access to smart technology in all innovation districts and corridors
A130: 3 | C130: Facilitate venture capital and human capital support for smart learning hubs
A131: 4 | C131: Develop a systematic commitment to creating a philosophy of innovation
A132: 5 | C132: Create a social and environmental innovation research lab for sustainability
C134: E. Encourage Public Art and Design that Builds Vibrancy and Identity
A135: 1 | C135: Use distinctive public art, architecture, landscape, and streetscape to build City and neighborhood identity
A136: 2 | C136: Implement the 1% for public art program
A137: 3 | C137: Expand arts and creative events and out-door programs
A138: 4 | C138: Use temporary public art projects and programs to revitalize underutilized City areas
A139: 5 | C139: Develop a long-range public art and design plan
A140: 6 | C140: Foster art and design that beautifies public transit
A141: 7 | C141: Encourage collaborations that build places and destinations through art
C143: F. Promote and Develop Arts, Creative and Innovation Facilities, Resources, and Events
A144: 1 | C144: Revitalize existing, and develop new art facilities
A145: 2 | C145: Encourage the expansion of arts and creative events and showcases
A146: 3 | C146: Create a City-wide "art and design week"
A147: 4 | C147: Develop a cohesive City-wide national marketing strategy
A148: 5 | C148: Expand existing online resources for information on arts and culture
A149: 6 | C149: Develop a "homesteading" live/work program
A150: 7 | C150: Assist artists, creative groups and venues in the promotion of their work
C152: G. Build Arts, Design and Leadership, Volunteerism, Stewardship and Funding
A153: 1 | C153: Provide leadership training in community oriented arts
A154: 2 | C154: Foster collaboration between arts and organizations to share knowledge and build capacity
A155: 3 | C155: Harness community energy and interest in the arts through volunteer programs
A156: 4 | C156: Involve artists and the "creative class" in the community
A157: 5 | C157: Support small / mid-sized community arts and organizations and individual artists
A158: 6 | C158: Develop partnerships to find new venues for artists and creative industries
A159: SAA6 | C159: Build Phase II of CORTEX bioscience and technology research district
C161: Civic Engagement, Participation & Leadership
C162: A. Encourage Civic Engagement, Transparency and Leadership
A163: 1 | C163: Involve the public in decisions that are relevant to the City
A164: 2 | C164: Expand accessibility of public meetings to increase public input on community issues
A165: 3 | C165: Increase turnout for voting opportunities
A166: 5 | C166: Empower community development corporations, neighborhood advisory committees, and sustainability advocacy groups
C168: B. Promote Youth Development, Education, Engagement and Empowerment
A169: 1 | C169: Provide early-education and supplemental youth education programs
A170: 2 | C170: Provide affordable after-school, summer enrichment, and volunteer programs
A171: 3 | C171: Develop supervised entertainment, recreation, and commercial areas for youth
A172: 4 | C172: Provide prevention/intervention programs, and mental/emotional health counseling
A173: 5 | C173: Direct youth towards college and technical school from an early age
A174: 6 | C174: Create opportunities for youth as they enter young adulthood and the workforce
A175: 7 | C175: Develop a green jobs program for youth
A176: 8 | C176: Encourage youth civic engagement at all levels
A177: 9 | C177: Improve the availability of transportation for youth
A178: 10 | C178: Ensure youth and families have access to healthy food
C180: C. Promote Senior Civic Involvement, Empowerment, and Intergenerational Engagement
A181: 1 | C181: Encourage and facilitate "Aging-In-Place"
A182: 2 | C182: Offer safe, affordable and convenient transportation for seniors
A183: 3 | C183: Encourage intergenerational programs that bring together seniors and youth
A184: 4 | C184: Expand efforts to engage seniors in civic and volunteer programs
A185: 5 | C185: Promote healthy senior living programs at community facilities
C187: D. Reduce Homelessness and Support Low Income Families & the Unemployed
A188: 1 | C188: Develop and enhance the homeless services continuum of care
A189: 2 | C189: Develop measures to prevent people from falling into poverty or homelessness
A190: 3 | C190: Provide a safety net of social services in case of emergencies or personal crisis
A191: 4 | C191: Expand the capacity to create additional affordable housing units
A192: 5 | C192: Create pathways for qualified low-income families to become homeowners
A193: 6 | C193: Support efforts to reduce foreclosures and evictions
A194: 7 | C194: Provide job placement services for the unemployed and underemployed
A195: 8 | C195: Develop an online public resource of available human, medical, and social services in the City
C197: E. Ensure Access to Amenities, Business Opportunities, Transportation, and Safety and Healthy Neighborhoods
A198: 1 | C198: Address blighting and environmental health hazards
A199: 2 | C199: Ensure residents have access to public transit and alternate modes of transportation
A200: 3 | C200: Ensure all neighborhoods are safe and are perceived to be safe
A201: 4 | C201: Ensure equal distribution of healthy food options
A202: 5 | C202: Conduct a City-wide equity assessment
A203: 6 | C203: Ensure the application of universal design and accessibility codes
A204: SAA10 | C204: Implement Board Bill 297 pertaining to workforce inclusion
C206: Health, Well-Being & Safety
C207: A. Advance Positive Behavior, Nonviolent Conflict Resolution, and Crime Prevention
A208: 1 | C208: Establish a community security structure
A209: 2 | C209: Create opportunities for positive dialog between Police officers and the local community
A210: 3 | C210: Develop more school (and afterschool) programs
A211: 4 | C211: Provide services to reduce mental and physical pain and suffering from criminal and emotionally disruptive events
A212: 5 | C212: Plan and design buildings, spaces, and environments for safety
C214: B. Reduce Toxins in the Environment
A215: 1 | C215: Promote awareness, education and program development around air quality issues
A216: 2 | C216: Enforce regulatory standards and ordinances around air quality
A217: 3 | C217: Reduce air pollution and other harmful emissions from vehicles and engine-driven equipment
A218: 4 | C218: Educate residents about alternatives to use of toxic materials and hazardous chemicals
A219: 5 | C219: Reduce exposure of lead-based paint poisoning and remediate lead-based paint hazards
A220: 6 | C220: Remediate and redevelop contaminated land
C222: C. Increase Access to Healthy, Local Food, and Nutritional Information
A223: 1 | C223: Eliminate food deserts and improve access to fresh produce
A224: 2 | C224: Connect food growers with food consumers
A225: 3 | C225: Support agriculture opportunities in the City
... 181 more rows

Sheet 10) 1099
B8: Date:
B10: Contact
B11: Entity Name
B12: Address 1
B13: Address 2
B15: To Whom It May Concern:
B17: The Internal Revenue Service Tax Equity and Fiscal Responsibility Act of 1982 requires the City of St Louis to have either a Social Security Number for individuals or proprietorships, or a Federal Identification on file for all vendors subject to 1099 reportable payments of $600.00 or more.
C20: Please complete the information below and return this letter to us within fifteen days.
B21: WE ARE UNABLE TO PROCESS ANY PAYMENTS WITHOUT THIS INFORMATION.
B23: 1. Check the Appropriate Company | D23: 2. I.D. Number (Complete One)
B25: _____ Corporation | E25: _____­__________________
F26: Federal I.D. xx-xxxxxxx
B27: _____ Partnership
B29: _____ Individual/Proprietorship | C29: Individual/Proprietorship | E29: _______________________
F30: S.S. Number xxx-xx-xxxx
B31: _____ LLC - ____ (Corp) ____ (Partnership)
B32: (Check one of the two above spaces
B33: for tax classification if an LLC)
A35: If you are providing a social security number, please write your name clearly. The IRS will not accept a company name with a social security number for 1099 purposes.
C38: I certify that the information provided above is true, correct and complete.
B40: ________________________________ | D40: _______________________________
B41: Authorized Signature | D41: Title
B44: ________________________________ | D44: _______________________________
B45: Company Name | D45: Date
B47: ________________________________ | D47: _______________________________
B48: Address | D48: City, State, Zip

Sheet 11) Compliance Info
A1: Affordable Housing Commission For Sale Housing Production Program
A2: Compliance Information & Underwriting Guidelines
A4: Project: | B4: ='1) Application'!F7 -> 0 | D4: Housing Type: | F4: ='1) Application'!G32 -> 0 | H4: AHC Units: | J4: ='1) Application'!U22 -> 0
A5: Developer: | B5: ='1) Application'!E84 -> 0 | D5: Construction Type: | F5: ='1) Application'!G31 -> 0 | H5: ≤20% AMI Units: | J5: ='1) Application'!U23 -> 0
A6: Address: | B6: ='1) Application'!F8 -> 0 | H6: LMI Units: | J6: ='1) Application'!U24 -> 0
H7: Total Units: | J7: =units -> 0
A8: 2025 Homebuyer Income Limits for AHC-assisted For-Sale Units
A9: City of St. Louis
A10: Family Size | B10: 1 | C10: 2 | D10: 3 | E10: 4 | F10: 5 | G10: 6 | H10: 7 | I10: 8
A11: 0.2 | B11: =E11*0.7 -> 15596 | C11: =E11*0.8 -> 17824 | D11: =E11*0.9 -> 20052 | E11: =111400*0.2 -> 22280 | F11: =E11*1.08 -> 24062.4 | G11: =E11*1.16 -> 25844.8 | H11: =E11*1.24 -> 27627.2 | I11: =E11*1.3208 -> 29427.424
A12: 0.3 | B12: 23400 | C12: 26750 | D12: 30100 | E12: 33400 | F12: 37650 | G12: 43150 | H12: 48650 | I12: 54150
A13: 0.4 | B13: =E13*0.7 -> 31192 | C13: 35648 | D13: 40104 | E13: =111400*0.4 -> 44560 | F13: =E13*1.08 -> 48124.8 | G13: =E13*1.16 -> 51689.6 | H13: =E13*1.24 -> 55254.4 | I13: =E13*1.3208 -> 58854.848
A14: 0.5 | B14: 39000 | C14: 44600 | D14: 50150 | E14: 55700 | F14: 60200 | G14: 64650 | H14: 69100 | I14: 73550
A15: 0.6 | B15: =E15*0.7 -> 46788 | C15: =E15*0.8 -> 53472 | D15: =E15*0.9 -> 60156 | E15: =111400*0.6 -> 66840 | F15: =E15*1.08 -> 72187.2 | G15: =E15*1.16 -> 77534.4 | H15: =E15*1.24 -> 82881.6 | I15: =E15*1.3208 -> 88282.272
A16: 0.65 | B16: =E16*0.7 -> 50687 | C16: =E16*0.8 -> 57928 | D16: =E16*0.9 -> 65169 | E16: =111400*0.65 -> 72410 | F16: =E16*1.08 -> 78202.8 | G16: =E16*1.16 -> 83995.6 | H16: =E16*1.24 -> 89788.4 | I16: =E16*1.3208 -> 95639.128
A17: 0.7 | B17: =E17*0.7 -> 54586 | C17: 62384 | D17: 70182 | E17: =111400*0.7 -> 77980 | F17: =E17*1.08 -> 84218.4 | G17: =E17*1.16 -> 90456.8 | H17: =E17*1.24 -> 96695.2 | I17: =E17*1.3208 -> 102995.984
A18: 0.8 | B18: 62400 | C18: 71300 | D18: 80200 | E18: 89100 | F18: 96250 | G18: 103400 | H18: 110500 | I18: 117650
A19: St. Louis Area (MO-IL) Median Family Income (AMI) for year 2025 is $111,400.
A20: Source: HUD Income Limits, huduser.gov/portal/datasets, June 2025.
A22: Maximum Sales Price of Trust Fund-Assisted Units
B23: Single Family | D23: 215000 | E23: 3 Family (triplex) | G23: 324000
B24: 2 Family (duplex) | D24: 268000 | E24: 4 Family (quad) | G24: 401000
A28: Developer Fee Calculation
A29: 9% APPLICATION
A30: HARD COST (CONSTRUCTION CONTRACT VALUE) | B30: ='2) Development Budget'!D44 -> 0
A31: TOTAL DEVELOPMENT COST | B31: =TDC -> 0
A32: TOTAL UNITS | B32: ='2) Development Budget'!F6 -> 0
C35: Flat Rate | D35: $/unit | E35: % Hard Cost | F35: % TDC | H35: $/unit | I35: % Hard Cost | J35: % TDC | L35: Fee Allowed
A36: New Construction | C36: 4000000 | D36: 45000 | E36: N/A | F36: 0.13 | H36: =IF(D36="N/A","",D36*B32) -> 0 | I36: =IF(E36="N/A","",ROUND(E36*B$4,-3)) ->  | J36: =ROUND(F36*B$5,-3) -> 0 | L36: =IF(C36="N/A",MIN(H36,J36),MIN(C36,H36,J36)) -> 0
A37: Acq Rehab | C37: 6000000 | D37: N/A | E37: 0.35 | F37: 0.13 | H37: =IF(D37="N/A","",D37*B33) ->  | I37: =IF(E37="N/A","",ROUND(E37*B$4,-3)) -> 0 | J37: =ROUND(F37*B$5,-3) -> 0 | L37: =IF(C37="N/A",MIN(H37,J37),MIN(C37,H37,J37)) -> 0
A38: Combo | L38: =+MIN(L36:L37) -> 0
A40: 4% APPLICATION
A41: HARD COST (CONSTRUCTION CONTRACT VALUE) | B41: ='2) Development Budget'!D44 -> 0
A42: TOTAL DEVELOPMENT COST | B42: =TDC -> 0
A43: TOTAL UNITS | B43: ='2) Development Budget'!F6 -> 0
C46: Flat Rate | D46: $/unit | E46: % Hard Cost | F46: % TDC | H46: $/unit | I46: % Hard Cost | J46: % TDC | L46: Fee Allowed
A47: New Construction | C47: N/A | D47: 45000 | E47: N/A | F47: 0.13 | H47: =IF(D47="N/A","",D47*B43) -> 0 | I47: =IF(E47="N/A","",ROUND(E47*B$14,-3)) ->  | J47: =ROUND(F47*B$15,-3) -> 6000 | L47: =IF(C47="N/A",MIN(H47,J47),MIN(C47,H47,J47)) -> 0
A48: Acq Rehab | C48: N/A | D48: N/A | E48: 0.35 | F48: 0.13 | I48: =IF(E48="N/A","",ROUND(E48*B$14,-3)) -> 14000 | J48: =ROUND(F48*B$15,-3) -> 6000 | L48: 6000
A49: Combo | L49: =+MIN(L47:L48) -> 0
A51: 2024 MHDC Development Costs Standards
C53: Minimum | D53: Maximum | E53: Notes | G53: Project #s | H53: Within Limits?
A54: Construction Contingency | G54: ='1) Application'!G31:M31 -> 0
A55: New Construction | C55: 0.05 | D55: 0.075 | E55: of Construction Costs - recommendation only | G55: =IF(G54="New Construction",'3) Construction Costs'!P99,"-") -> - | H55: =IF(G55<=D55,G54="New Construction") -> FALSE
A56: Rehab | C56: 0.075 | D56: 0.1 | G56: =IF(G54="Rehab",'3) Construction Costs'!P99,"-") -> - | H56: =IF(G56<=D56,G55="Rehab") -> FALSE
A57: Developer Fee
A58: New Construction | C58: na | D58: 0.12 | E58: of TDC (excluding Developer Fee) | G58: =IF(G54="New Construction",'2) Development Budget'!H69,"-") -> - | H58: =IF(G58<=D58,"Yes","No") -> No
A59: Rehab | C59: na | D59: 0.15 | G59: =IF(G54="Rehab",'2) Development Budget'!H69,"-") -> - | H59: =IF(G59<=D59,"Yes","No") -> No
A60: Contractor's Fees
A61: Profit | C61: na | D61: 0.08 | E61: of Construction (less profit, overhead, contingency) | G61: ='3) Construction Costs'!P14 ->  | H61: =IF(G61<=D61,"Yes","No") -> 
A62: Overhead | C62: na | D62: 0.02 | E62: of Construction (less profit, overhead, contingency) | G62: ='3) Construction Costs'!P12 ->  | H62: =IF(G62<=D62,"Yes","No") -> 
A63: General Conditions | C63: na | D63: 0.06 | E63: of Construction (less profit, overhead, contingency) | G63: ='3) Construction Costs'!P13 ->  | H63: =IF(G63<=D63,"Yes","No") -> 
A64: TDC = Total Development Costs

Sheet Evaluation (hidden)
A2: PROPOSAL #: | H2: WARD # | I2: ='1) Application'!O9 -> 0
A3: PROJECT: | B3: ='1) Application'!F7 -> 0
A4: DEVELOPER: | B4: ='1) Application'!E84 -> 0 | H4: Amount Requested: | I4: ='1) Application'!Q64 -> 0
A5: Forgivable Developer Subsidy | C5: ='1) Application'!Q65 -> 0 | H5: Total Project Budget: | I5: ='4) Sources & Uses'!F20 -> 0
A6: Repayable Buyer Subsidy | C6: ='1) Application'!Q66 -> 0 | D6: Eight (8) Forgivable Buyer Subsidies of $35,000 each. | H6: # ≤20% AMI AHC Units: | I6: ='1) Application'!U23 -> 0
H7: # ≤80% AMI AHC Units: | I7: ='1) Application'!U22 -> 0
A8: SUMMARY PROPOSAL DESCRIPTION
A21: Calculation of AHC cost per unit or client served to requested amount: | J21: ='1) Application'!Q77 -> 
A22: Calculation of % of total project budget to requested amount: | J22: ='4) Sources & Uses'!H53 -> 
A24: NOFA PRIORITY:
A25: Proposes housing or shelter for persons and families with income ≤20% AMI. | J25: ='6) Priorities'!J8 -> 0
A26: Proposes permanent supportive housing for special needs & vulnerable households ≤30% AMI. | J26: ='6) Priorities'!J10 -> 0
A27: Provides assistance to prevent homelessness for households or individuals earning at or below 80% AMI. | J27: ='6) Priorities'!J12 -> 0
A28: Develops affordable housing units while advancing 15 or more Sustainability Plan objectives. | J28: ='6) Priorities'!J20 -> 0
A29: Develops affordable housing within ½ mile of public transportation. | J29: ='6) Priorities'!J24 -> 0
A30: Comprehensively rehabilitates affordable housing to a national green building standard or attains a HERS ≤85. | J30: ='6) Priorities'!J30 -> 0
A31: Proposes housing with three or more bedrooms & serves households ≤80% AMI. | J31: ='6) Priorities'!J33 -> 0
I33: Priorities | J33: =COUNTIF(J25:J31, "Yes") -> 0
A35: NEW CONSTRUCTION - Designed & built to a national green building standard? | J35: ='1) Application'!P140 -> 0
A36: UD CERTIFICATION: | D36: ='1) Application'!N419 -> 0 | F36: REQUESTS UD WAIVER? | H36: ='1) Application'!U434 -> 0 | J36: N/A Rehab
A37: PREVIOUS AWARDEE? | F37: DATE:
A38: RECENT AWARDS:
A39: Additional Comments/Observations
A44: SUPPORT LETTERS
A46: DISCLOSURE OF COMMISSIONER CONFLICT (if any):
A47: STAFF RECOMMENDATION: | G47: AMOUNT:
A48: REASONS NOT TO FUND:
A50: STAFF RECOMMENDED TERMS:
A54: COMMISSION APPROVAL: | G54: AMOUNT:
A56: COMMISSION RECOMMENDED TERMS:

Sheet Review (hidden)
A1: Project Name: | C1: ='1) Application'!F7 -> 0 | G1: Neighborhood: | H1: ='1) Application'!R8 -> 0
A2: Project Number: | C2: =Evaluation!B2 -> 0 | G2: Ward: | H2: ='1) Application'!O9 -> 0
A3: Applicant/Developer: | C3: ='1) Application'!E84 -> 0 | G3: Project Address: | H3: ='1) Application'!F8 -> 0
A4: Funding Request: | C4: ='1) Application'!Q64 -> 0 | G4: Sponsor: | H4: ='1) Application'!E350 -> 0
A5: Total Project Cost: | C5: ='4) Sources & Uses'!F20 -> 0
A6: General Contractor: | C6: ='1) Application'!E296 -> 0
A10: Preferred Repayment Terms: | C10: ='1) Application'!B80 -> 0
A13: Income Served | B13: # Units | C13: LMI Units | D13: AHC-Assisted Units | F13: Homes | G13: Description | H13: Square Footage | I13: Sale Price | J13: Buyer Subsidy
A14: 20% AMI | B14: ='1) Application'!J30 -> 0 | D14: ='1) Application'!U23 -> 0 | F14: 1 | G14: 1 Bedroom, 1 bath | H14: ='1) Application'!H259 -> 0 | I14: ='1) Application'!P259 -> 0 | J14: ='1) Application'!S259 -> 0
A15: 30% AMI | B15: ='1) Application'!J29 -> 0 | F15: 1 | G15: 2 Bedroom, 1 bath | H15: ='1) Application'!H260 -> 0 | I15: ='1) Application'!P260 -> 0 | J15: ='1) Application'!S260 -> 0
A16: 40% AMI | B16: ='1) Application'!J28 -> 0 | F16: 1 | G16: 2 Bedroom, 2 bath | H16: ='1) Application'!H261 -> 0 | I16: ='1) Application'!P261 -> 0 | J16: ='1) Application'!S261 -> 0
A17: 50% AMI | B17: ='1) Application'!J27 -> 0 | F17: 1 | G17: 3 Bedroom, 1 bath | H17: ='1) Application'!H262 -> 0 | I17: ='1) Application'!P262 -> 0 | J17: ='1) Application'!S262 -> 0
A18: 60% AMI | B18: ='1) Application'!J26 -> 0 | F18: 1 | G18: 3 Bedroom, 2 bath | H18: ='1) Application'!H263 -> 0 | I18: ='1) Application'!P263 -> 0 | J18: ='1) Application'!S263 -> 0
A19: 70% AMI | B19: ='1) Application'!J25 -> 0 | F19: 1 | G19: 4 Bedroom, 1 bath | H19: ='1) Application'!H264 -> 0 | I19: ='1) Application'!P264 -> 0 | J19: ='1) Application'!S264 -> 0
A20: 80% AMI | B20: ='1) Application'!J24 -> 0 | F20: 1 | G20: 4 Bedroom, 2 bath | H20: ='1) Application'!H265 -> 0 | I20: ='1) Application'!P265 -> 0 | J20: ='1) Application'!S265 -> 0
A21: Market-Rate | B21: ='1) Application'!J23 -> 0 | F21: 1 | G21: 5 Bedroom, 2 bath | H21: ='1) Application'!H266 -> 0 | I21: ='1) Application'!P266 -> 0 | J21: ='1) Application'!S266 -> 0
A22: Total | B22: =SUM(B14:B21) -> 0 | C22: ='1) Application'!U24 -> 0 | D22: ='1) Application'!U22 -> 0 | E22: Total | F22: =SUM(F14:F21) -> 8 | H22: =SUM(H14:H21) -> 0 | I22: =SUM(I14:I21) -> 0 | J22: =SUM(J14:J21) -> 0
A24: Interim Leveraging Sources: | E24: Amount | G24: % (of TDC) | H24: Secured
A25: ='4) Sources & Uses'!B38 -> Conventional Bank Construction Loan | E25: ='4) Sources & Uses'!F38 -> 0 | G25: =E25/$C$5 ->  | H25: ='4) Sources & Uses'!J38 -> 0
A26: ='4) Sources & Uses'!B39 -> Developer Equity (self-financing for acquisition, predevelopment) | E26: ='4) Sources & Uses'!F39 -> 0 | G26: =E26/$C$5 ->  | H26: ='4) Sources & Uses'!J39 -> 0
A27: ='4) Sources & Uses'!B40 -> Source 3 | E27: ='4) Sources & Uses'!F40 -> 0 | G27: =E27/$C$5 ->  | H27: ='4) Sources & Uses'!J40 -> 0
A28: ='4) Sources & Uses'!B41 -> Source 4 | E28: ='4) Sources & Uses'!F41 -> 0 | G28: =E28/$C$5 ->  | H28: ='4) Sources & Uses'!J41 -> 0
A29: ='4) Sources & Uses'!B42 -> AHC Funding | E29: ='4) Sources & Uses'!F42 -> 0 | G29: =E29/$C$5 -> 
A30: Total Interim Financing | E30: =SUM(E25:E29) -> 0 | G30: =SUM(G25:G29) -> 
A32: Permanent Sources | E32: Amount | G32: % (of TDC) | H32: Secured | J32: Date
A33: Home Sales Proceeds (Mortgage, Downpayment) | E33: ='4) Sources & Uses'!F25 -> 0 | G33: =E33/$C$5 ->  | H33: ='4) Sources & Uses'!I25 -> 0 | J33: ='4) Sources & Uses'!K25 -> 00:00:00
A34: Estimated MO State Historic Tax Credits | E34: ='4) Sources & Uses'!F26 -> 0 | H34: ='4) Sources & Uses'!I26 -> 0 | J34: ='4) Sources & Uses'!K26 -> 00:00:00
A35: Neighborhood Preservation Tax Credits | E35: ='4) Sources & Uses'!F27 -> 0 | H35: ='4) Sources & Uses'!I27 -> 0 | J35: ='4) Sources & Uses'!K27 -> 00:00:00
A36: MO State HOME Funds | E36: ='4) Sources & Uses'!F29 -> 0 | H36: ='4) Sources & Uses'!I28 -> 0 | J36: ='4) Sources & Uses'!K29 -> 00:00:00
A37: Affordable Housing Commission | E37: ='1) Application'!M77 -> 0
A38: ='4) Sources & Uses'!B30 -> Other: | E38: ='4) Sources & Uses'!F30 -> 0 | H38: ='4) Sources & Uses'!I30 -> 0 | J38: ='4) Sources & Uses'!K30 -> 00:00:00
A39: ='4) Sources & Uses'!B31 -> Other: | E39: ='4) Sources & Uses'!F31 -> 0 | H39: ='4) Sources & Uses'!I31 -> 0 | J39: ='4) Sources & Uses'!K31 -> 00:00:00
A40: ='4) Sources & Uses'!B32 -> Other: | E40: ='4) Sources & Uses'!F32 -> 0 | H40: ='4) Sources & Uses'!I32 -> 0 | J40: ='4) Sources & Uses'!K32 -> 00:00:00
A41: Total Permanent Financing | E41: =SUM(E33:E40) -> 0 | G41: =SUM(G33:G40) -> 
A43: Summary | E43: Amount | G43: % (of TDC)
A44: Total Development Cost | E44: ='4) Sources & Uses'!F20 -> 0
A45: Hard Construction Cost | E45: ='2) Development Budget'!D44 -> 0 | G45: =E45/$C$5 -> 
A46: Soft Costs | E46: ='4) Sources & Uses'!F16+'4) Sources & Uses'!F17+'4) Sources & Uses'!F18+'4) Sources & Uses'!F19 -> 0
A47: Developer Fee (included in soft costs) | E47: ='4) Sources & Uses'!F19 -> 0
A48: Sales Proceeds | E48: ='2) Development Budget'!D74 -> 0
A49: Sales Commission | E49: ='2) Development Budget'!D64 -> 0
A50: Builder's Profit (not in hard/soft costs) | E50: ='3) Construction Costs'!M14 -> 0
A51: Contingency | E51: ='3) Construction Costs'!M98 -> 0
A52: Land & building | E52: ='2) Development Budget'!D36 -> 0
A53: Cost Per Unit | E53: ='2) Development Budget'!E71 -> 
A54: Cost Per Square Foot | E54: ='2) Development Budget'!F71 -> 
A55: AHC Funds Per AHC-Assisted Unit | E55: ='1) Application'!Q77 -> 
A56: AHC % of Total Project Cost | E56: =E37/E44 -> 
A57: # Accessible Units | E57: ='1) Application'!M132 -> 0
A58: % Hearing Accessible Units: | E58: ='1) Application'!M133 -> %
A59: # Universally Designed Units | E59: ='1) Application'!M134 -> 0
A61: Priorities to be Attained
A62: ='6) Priorities'!J8 -> 0 | B62: ≤20% AMI
A63: ='6) Priorities'!J10 -> 0 | B63: ≤30% AMI & PSH
A64: ='6) Priorities'!J12 -> 0 | B64: Prevents Homeless
A65: ='6) Priorities'!J20 -> 0 | B65: ≥15 Green Objectives
A66: ='6) Priorities'!J24 -> 0 | B66: Public Transit
A67: ='6) Priorities'!J30 -> 0 | B67: Energy Efficient Rehab
A68: ='6) Priorities'!J33 -> 0 | B68: ='6) Priorities'!F43 -> 3+ Bedrooms
A69: =COUNTIF(A62:A68, "Yes") -> 0 | B69: Priorities to be attained

Sheet Rating (hidden)
A2: Project: | C2: ='1) Application'!F7 -> 0 | J2: Ward # | K2: ='1) Application'!O9 -> 0
A3: Applicant/Developer: | C3: ='1) Application'!E84 -> 0 | J3: Proj. # | K3: =Evaluation!B2 -> 0
A4: Funding Request: | C4: ='1) Application'!Q64 -> 0
A5: Total Project Cost: | C5: ='4) Sources & Uses'!F20 -> 0
A6: Project Address: | C6: ='1) Application'!F8 -> 0
A7: AHC-Assisted Units: | C7: ='1) Application'!U22 -> 0 | F7: LMI Units: | G7: ='1) Application'!U24 -> 0
A8: ≤20% AMI Units: | C8: ='1) Application'!U23 -> 0 | F8: Total Units: | G8: =units -> 0
A9: Site control from Land Reutilization Authority? | D9: ='1) Application'!S178 -> 0
A10: Neighborhood or housing sponsor: | D10: ='1) Application'!E350 -> 0
H12: Good | I12: Fair | J12: Poor | K12: Comments
A13: Energy Efficient
A14: If new construction, the project will be built to a national green building standard.
A15: If rehabilitation, the project incorporates AHC's recommended energy-saving features into construction.
A16: Sources & Uses
A17: Costs are reasonable & sufficient.
A18: Strong financial support and the project supports its debt.
A19: Significant community support.
A20: Neighborhood & Market
A21: Marketing plan supports proposed home prices.
A22: Has a reasonable plan to sell homes quickly (within 1-year).
A23: Utilizes the MVA toward a strategic, equitable use of Trust Fund dollars.
A24: Development Team
A25: The project team is qualified & experienced.
A26: Projected time frame: Complete within 16 months from January 2026. | F26: ='1) Application'!O255 -> 0 | G26: months
A27: NOFA Priority
A28: Provides housing or shelter for persons or families earning ≤20% Area Median Income. | I28: ='6) Priorities'!J8 -> 0
A29: Provides permanent supportive housing for persons or families earning ≤30% Area Median Income. | I29: ='6) Priorities'!J10 -> 0
A30: Provide assistance or initiatives that prevent homelessness for households or individuals earning at or below 80% AMI | I30: ='6) Priorities'!J12 -> 0
A31: Develops affordable housing units while advancing 15 or more Sustainability Plan objectives. | I31: ='6) Priorities'!J20 -> 0
A32: Develops affordable housing within ½ mile of public transportation. | I32: ='6) Priorities'!J24 -> 0
A33: Comprehensively rehabilitates affordable housing to a national green building standard or HERS of ≤85. | I33: ='6) Priorities'!J30 -> 0
A34: Creates housing with three or more bedrooms and serves households ≤80% AMI. | I34: ='6) Priorities'!J33 -> 0
A36: AHC Recommendation for funding | I36: $
A37: AHC Terms:
A39: Comments:
